fUSD/lending_fUSD_20250206
["ID","MTS","AMOUNT","RATE_DAILY","PERIOD"]
[352000522,1738873844712,-500.0,0.00016982,2]
[352000523,1738873844721,-500.0,0.00016982,2]
[352000524,1738873844731,-780.14,0.00016982,2]
[352000525,1738873844740,-500.0,0.00016982,2]
[352000526,1738873844750,-1049.49,0.00016982,2]
[352000527,1738873844760,-500.0,0.00016982,2]
[352000528,1738873844770,-501.11,0.00016982,2]
[352000529,1738873844779,-531.5,0.00016982,2]
[352000530,1738873844788,-564.64,0.00016982,2]
[352000531,1738873844797,-529.12,0.00016982,2]
[352000532,1738873844807,-500.0,0.00016982,2]
[352000533,1738873844816,-500.0,0.00016982,2]
[352000534,1738873844826,-824.13,0.00016982,2]
[352000535,1738873844835,-500.0,0.00016982,2]
[352000536,1738873844845,-500.0,0.00016982,2]
[352000537,1738873844855,-524.56,0.00016982,2]
[352000538,1738873844864,-857.4,0.00016982,2]
[352000539,1738873844874,-500.0,0.00016982,2]
[352000540,1738873844883,-500.0,0.00016982,2]
[352000541,1738873844893,-688.21,0.00016982,2]
[352000542,1738873844903,-500.0,0.00016982,2]
[352000543,1738873844912,-500.0,0.00016982,2]
[352000544,1738873844924,-500.0,0.00016982,2]
[352000545,1738873844934,-958.57,0.00016982,2]
[352000546,1738873844947,-500.0,0.00016982,2]
[352000547,1738873844957,-500.0,0.00016982,2]
[352000548,1738873844969,-621.13,0.00016982,2]
[352000549,1738873844980,-500.0,0.00016982,2]
[352000550,1738873844991,-500.0,0.00016982,2]
[352000551,1738873845003,-500.0,0.00016982,2]
[352000552,1738873845014,-686.36,0.00016982,2]
[352000553,1738873845024,-675.98,0.00016982,2]
[352000554,1738873845034,-500.0,0.00016982,2]
[352000555,1738873845044,-500.0,0.00016982,2]
[352000556,1738873845054,-635.82,0.00016982,2]
[352000557,1738873845063,-806.26,0.00016982,2]
[352000558,1738873845073,-500.0,0.00016982,2]
[352000559,1738873845084,-500.0,0.00016982,2]
[352000560,1738873845094,-500.0,0.00016982,2]
[352000561,1738873845104,-500.0,0.00016982,2]
[352000562,1738873845114,-500.0,0.00016982,2]
[352000563,1738873845124,-500.0,0.00016982,2]
[352000564,1738873845134,-500.0,0.00016982,2]
[352000565,1738873845144,-500.0,0.00016982,2]
[352000566,1738873845154,-500.0,0.00016982,2]
[352000567,1738873845164,-500.0,0.00016982,2]
[352000568,1738873845174,-500.0,0.00016982,2]
[352000569,1738873845185,-579.6,0.00016982,2]
[352000570,1738873845199,-500.0,0.00016982,2]
[352000571,1738873845209,-161.11,0.00016982,2]
[352000572,1738873845220,-500.0,0.00016982,2]
[352000573,1738873845230,-500.0,0.00016982,2]
[352000574,1738873845242,-500.0,0.00016982,2]
[352000575,1738873845252,-500.0,0.00016982,2]
[352000576,1738873845263,-599.28,0.00016982,2]
[352000577,1738873845273,-617.58,0.00016982,2]
[352000578,1738873845284,-500.0,0.00016982,2]
[352000579,1738873845294,-500.0,0.00016982,2]
[352000580,1738873845304,-500.0,0.00016982,2]
[352000581,1738873845314,-500.0,0.00016983,2]
[352000582,1738873845324,-500.0,0.00016983,2]
[352000583,1738873845335,-698.5,0.00016983,2]
[352000584,1738873845345,-500.0,0.00016983,2]
[352000585,1738873845355,-500.0,0.00016983,2]
[352000586,1738873845366,-500.0,0.00016983,2]
[352000587,1738873845375,-500.0,0.00016983,2]
[352000588,1738873845385,-500.0,0.00016983,2]
[352000589,1738873845395,-500.0,0.00016983,2]
[352000590,1738873845405,-173.11437233,0.00016983,2]
[352000591,1738873845415,-510.24,0.00016983,2]
[352000592,1738873845425,-614.86,0.00016983,2]
[352000593,1738873845437,-2036.06,0.00016983,2]
[352000594,1738873845452,-995.94,0.00016983,2]
[352000595,1738873845461,-500.0,0.00016983,2]
[352000596,1738873845471,-625.35,0.00016983,2]
[352000597,1738873845480,-500.0,0.00016983,2]
[352000598,1738873845490,-747.5,0.00016983,2]
[352000599,1738873845500,-912.55,0.00016983,2]
[352000600,1738873845510,-500.0,0.00016983,2]
[352000601,1738873845519,-552.3,0.00016983,2]
[352000602,1738873845529,-511.61,0.00016983,2]
[352000603,1738873845539,-92.14767573,0.00016983,2]
[352000604,1738873845789,-466.24232427,0.00016983,2]
[352000605,1738873845801,-601.22,0.00016983,2]
[352000606,1738873845813,-500.0,0.00016983,2]
[352000607,1738873845825,-620.43,0.00016983,2]
[352000608,1738873845847,-500.0,0.00016983,2]
[352000609,1738873845859,-629.83,0.00016983,2]
[352000610,1738873845871,-500.0,0.00016983,2]
[352000611,1738873845884,-500.0,0.00016983,2]
[352000612,1738873845897,-500.0,0.00016983,2]
[352000613,1738873845909,-603.83,0.00016983,2]
[352000614,1738873845921,-611.27,0.00016983,2]
[352000615,1738873845935,-500.0,0.00016983,2]
[352000616,1738873845953,-500.0,0.00016983,2]
[352000617,1738873845964,-500.0,0.00016983,2]
[352000618,1738873845976,-507.13,0.00016983,2]
[352000619,1738873845988,-956.84,0.00016983,2]
[352000620,1738873846003,-500.0,0.00016983,2]
[352000621,1738873846015,-549.23,0.00016983,2]
[352000622,1738873846027,-598.63,0.00016983,2]
[352000623,1738873846038,-607.46,0.00016983,2]
[352000624,1738873846050,-500.0,0.00016983,2]
[352000625,1738873846063,-500.0,0.00016983,2]
[352000626,1738873846075,-623.42,0.00016983,2]
[352000627,1738873846089,-500.0,0.00016983,2]
[352000628,1738873846101,-961.37,0.00016983,2]
[352000629,1738873846113,-524.89,0.00016983,2]
[352000630,1738873846124,-744.68,0.00016983,2]
[352000631,1738873846136,-914.92,0.00016983,2]
[352000632,1738873846146,-604.26,0.00016983,2]
[352000633,1738873846157,-500.0,0.00016983,2]
[352000634,1738873846167,-505.6,0.00016983,2]
[352000635,1738873846178,-648.0,0.00016983,2]
[352000636,1738873846189,-500.0,0.00016983,2]
[352000638,1738873846209,-500.0,0.00016983,2]
[352000640,1738873846223,-500.0,0.00016983,2]
[352000641,1738873846236,-538.46,0.00016983,2]
[352000642,1738873846246,-1255.7,0.00016983,2]
[352000643,1738873846258,-500.0,0.00016983,2]
[352000644,1738873846269,-500.0,0.00016983,2]
[352000645,1738873846279,-512.91,0.00016983,2]
[352000646,1738873846291,-500.0,0.00016983,2]
[352000647,1738873846304,-763.29,0.00016983,2]
[352000649,1738873846317,-504.12057581,0.00016983,2]
[352000651,1738873846331,-500.0,0.00016983,2]
[352000653,1738873846343,-500.0,0.00016983,2]
[352000656,1738873846355,-500.0,0.00016983,2]
[352000658,1738873846367,-500.0,0.00016983,2]
[352000660,1738873846411,-1683.0,0.00016983,2]
[352000661,1738873846472,-311.86205432,0.00016983,2]
[352000662,1738873846626,-474.50734897,0.00016984,2]
[352000663,1738873846743,-500.0,0.00016984,2]
[352000664,1738873846878,-500.0,0.00016984,2]
[352000665,1738873847006,-500.0,0.00016984,2]
[352000666,1738873847098,-500.0,0.00016984,2]
[352000667,1738873847260,-500.0,0.00016984,2]
[352000668,1738873847355,-500.0,0.00016984,2]
[352000669,1738873847422,-500.0,0.00016984,2]
[352000670,1738873847508,-648.52331664,0.00016984,2]
[352000671,1738873847574,-500.0,0.00016984,2]
[352000672,1738873847591,-500.0,0.00016984,2]
[352000673,1738873847602,-500.0,0.00016984,2]
[352000674,1738873847614,-500.0,0.00016984,2]
[352000675,1738873847626,-500.0,0.00016984,2]
[352000676,1738873847637,-500.0,0.00016984,2]
[352000677,1738873847648,-500.0,0.00016984,2]
[352000678,1738873847659,-500.0,0.00016984,2]
[352000679,1738873847670,-500.0,0.00016984,2]
[352000680,1738873847681,-539.26755416,0.00016984,2]
[352000681,1738873847691,-500.0,0.00016984,2]
[352000682,1738873847703,-500.0,0.00016984,2]
[352000683,1738873847714,-500.0,0.00016984,2]
[352000684,1738873847725,-500.0,0.00016984,2]
[352000685,1738873847735,-500.0,0.00016984,2]
[352000686,1738873847746,-500.0,0.00016984,2]
[352000687,1738873847756,-9948.7571686,0.00016989,2]
[352000688,1738873847767,-3877.7037831,0.00016989,2]
[352000689,1738873847778,-2565.76382998,0.00016995,2]
[352000690,1738873847789,-1000.0,0.00016996,2]
[352000691,1738873847800,-500.0,0.00016999,2]
[352000692,1738873847811,-206.49134488,0.00016999,2]
[352000693,1738873847822,-413.58180783,0.00016999,2]
[352000694,1738873847833,-5910.82043256,0.00017,2]
[352000695,1738873847844,-10000.0,0.00017,5]
[352000696,1738873847855,-4814.16954022,0.00017,4]
[352000697,1738873847866,-200.0,0.00017,2]
[352000698,1738873847877,-200.0,0.00017,2]
[352000699,1738873847888,-500.0,0.00017,7]
[352000700,1738873847899,-500.0,0.00017,7]
[352000701,1738873847910,-500.0,0.00017,7]
[352000702,1738873847922,-500.0,0.00017,7]
[352000703,1738873847934,-1764.13,0.00017,4]
[352000704,1738873847945,-500.0,0.00017001,2]
[352000705,1738873847956,-501.54,0.00017003,2]
[352000706,1738873847967,-3330.2566745,0.00017066,2]
[352000707,1738873847978,-500.0,0.0001707,2]
[352000708,1738873847989,-2000.0,0.0001707,2]
[352000709,1738873847999,-500.0,0.0001707,2]
[352000711,1738873848012,-500.0,0.0001707,2]
[352000713,1738873848022,-200.0,0.0001707,2]
[352000715,1738873848032,-150.02,0.00017073,2]
[352000717,1738873848043,-1059.0,0.00017089,2]
[352000719,1738873848054,-150.0,0.00017092,2]
[352000721,1738873848065,-150.0,0.00017097,2]
[352000723,1738873848075,-150.0,0.00017107,2]
[352000725,1738873848086,-2565.76382998,0.00017108,2]
[352000727,1738873848097,-472.17559798,0.00017112,2]
[352000730,1738873848108,-150.0,0.00017115,2]
[352000732,1738873848118,-150.0,0.00017115,2]
[352000734,1738873848129,-150.0,0.00017118,2]
[352000736,1738873848140,-500.0,0.00017119,2]
[352000738,1738873848151,-500.0,0.00017119,2]
[352000740,1738873848162,-500.0,0.00017119,2]
[352000742,1738873848173,-500.0,0.00017119,2]
[352000744,1738873848184,-500.0,0.00017119,2]
[352000747,1738873848197,-500.0,0.00017119,2]
[352000749,1738873848208,-500.0,0.00017119,2]
[352000751,1738873848219,-500.0,0.00017119,2]
[352000753,1738873848231,-332.9596657,0.00017119,2]
[352000755,1738873848242,-500.0,0.00017119,2]
[352000757,1738873848254,-500.0,0.00017119,2]
[352000759,1738873848266,-500.0,0.00017119,2]
[352000761,1738873848278,-500.0,0.00017119,2]
[352000763,1738873848291,-500.0,0.00017119,2]
[352000766,1738873848303,-500.0,0.00017119,2]
[352000768,1738873848314,-500.0,0.00017119,2]
[352000770,1738873848325,-500.0,0.00017119,2]
[352000772,1738873848336,-500.0,0.00017119,2]
[352000774,1738873848348,-500.0,0.00017119,2]
[352000776,1738873848360,-500.0,0.00017119,2]
[352000778,1738873848372,-500.0,0.00017119,2]
[352000780,1738873848383,-500.0,0.00017119,2]
[352000782,1738873848394,-500.0,0.00017119,2]
[352000785,1738873848407,-500.0,0.00017119,2]
[352000787,1738873848418,-500.0,0.00017119,2]
[352000789,1738873848429,-500.0,0.00017119,2]
[352000791,1738873848440,-500.0,0.00017119,2]
[352000793,1738873848452,-500.0,0.00017119,2]
[352000795,1738873848464,-500.0,0.00017119,2]
[352000797,1738873848475,-500.0,0.00017119,2]
[352000799,1738873848486,-500.0,0.00017119,2]
[352000801,1738873848498,-500.0,0.00017119,2]
[352000804,1738873848509,-500.0,0.00017119,2]
[352000806,1738873848520,-500.0,0.00017119,2]
[352000808,1738873848532,-500.0,0.00017119,2]
[352000810,1738873848543,-500.0,0.00017119,2]
[352000812,1738873848555,-500.0,0.00017119,2]
[352000814,1738873848566,-500.0,0.00017119,2]
[352000816,1738873848578,-500.0,0.00017119,2]
[352000818,1738873848590,-1295.22,0.00017119,2]
[352000821,1738873848602,-693.12,0.00017119,2]
[352000823,1738873848613,-500.0,0.00017119,2]
[352000825,1738873848623,-598.1,0.00017119,2]
[352000827,1738873848634,-500.0,0.00017119,2]
[352000829,1738873848645,-500.0,0.00017119,2]
[352000831,1738873848656,-500.0,0.00017119,2]
[352000833,1738873848666,-500.0,0.00017119,2]
[352000835,1738873848677,-500.0,0.00017119,2]
[352000837,1738873848689,-500.0,0.00017119,2]
[352000839,1738873848701,-500.0,0.00017119,2]
[352000841,1738873848712,-301.19,0.00017119,2]
[352000843,1738873848722,-500.0,0.00017119,2]
[352000845,1738873848732,-500.0,0.00017119,2]
[352000847,1738873848743,-500.0,0.00017119,2]
[352000849,1738873848752,-500.0,0.00017119,2]
[352000851,1738873848762,-819.14,0.00017119,2]
[352000853,1738873848774,-513.57,0.00017119,2]
[352000855,1738873848784,-575.08,0.00017119,2]
[352000857,1738873848795,-636.43,0.00017119,2]
[352000859,1738873848804,-593.37,0.00017119,2]
[352000861,1738873848814,-500.0,0.00017119,2]
[352000863,1738873848824,-500.0,0.00017119,2]
[352000865,1738873848834,-500.0,0.00017119,2]
[352000866,1738873848843,-1014.92,0.00017119,2]
[352000867,1738873848852,-827.67,0.00017119,2]
[352000868,1738873848862,-500.0,0.00017119,2]
[352000869,1738873848871,-500.0,0.00017119,2]
[352000870,1738873848880,-510.83,0.00017119,2]
[352000871,1738873848889,-1868.94,0.00017119,2]
[352000872,1738873848899,-598.1,0.00017119,2]
[352000873,1738873848908,-1007.55,0.00017119,2]
[352000874,1738873848918,-500.0,0.00017119,2]
[352000875,1738873848931,-780.14,0.00017119,2]
[352000876,1738873848940,-1049.49,0.00017119,2]
[352000877,1738873848951,-531.5,0.00017119,2]
[352000878,1738873848960,-461.06,0.00017119,2]
[352000879,1738873848971,-500.0,0.00017119,2]
[352000880,1738873848980,-824.13,0.00017119,2]
[352000881,1738873848990,-524.56,0.00017119,2]
[352000882,1738873848999,-857.4,0.00017119,2]
[352000883,1738873849010,-500.0,0.00017119,2]
[352000884,1738873849020,-688.21,0.00017119,2]
[352000885,1738873849029,-500.0,0.00017119,2]
[352000886,1738873849039,-958.57,0.00017119,2]
[352000887,1738873849049,-500.0,0.00017119,2]
[352000888,1738873849059,-621.13,0.00017119,2]
[352000889,1738873849070,-686.36,0.00017119,2]
[352000890,1738873849402,-675.98,0.00017119,2]
[352000891,1738873849428,-500.0,0.00017119,2]
[352000892,1738873849449,-400.91517761,0.00017119,2]
[352000893,1738873849469,-405.34482239,0.00017119,2]
[352000894,1738873849480,-500.0,0.00017119,2]
[352000895,1738873849491,-500.0,0.00017119,2]
[352000896,1738873849503,-500.0,0.00017119,2]
[352000897,1738873849514,-500.0,0.00017119,2]
[352000898,1738873849525,-500.0,0.00017119,2]
[352000899,1738873849536,-500.0,0.00017119,2]
[352000900,1738873849547,-500.0,0.00017119,2]
[352000901,1738873849558,-500.0,0.00017119,2]
[352000902,1738873849568,-579.6,0.00017119,2]
[352000903,1738873849579,-254.86,0.00017119,2]
[352000904,1738873849591,-500.0,0.00017119,2]
[352000905,1738873849601,-599.28,0.00017119,2]
[352000906,1738873849611,-500.0,0.00017119,2]
[352000907,1738873849621,-500.0,0.00017119,2]
[352000908,1738873849631,-500.0,0.00017119,2]
[352000909,1738873849641,-500.0,0.0001712,2]
[352000910,1738873849651,-698.5,0.0001712,2]
[352000911,1738873849661,-500.0,0.0001712,2]
[352000912,1738873849671,-500.0,0.0001712,2]
[352000913,1738873849682,-500.0,0.0001712,2]
[352000914,1738873849691,-500.0,0.0001712,2]
[352000915,1738873849703,-500.0,0.0001712,2]
[352000916,1738873849713,-500.0,0.0001712,2]
[352000917,1738873849722,-510.24,0.0001712,2]
[352000918,1738873849732,-614.86,0.0001712,2]
[352000919,1738873849742,-2036.06,0.0001712,2]
[352000920,1738873849751,-995.94,0.0001712,2]
[352000921,1738873849761,-500.0,0.0001712,2]
[352000922,1738873849770,-625.35,0.0001712,2]
[352000923,1738873849780,-500.0,0.0001712,2]
[352000924,1738873849791,-747.5,0.0001712,2]
[352000925,1738873849801,-912.55,0.0001712,2]
[352000926,1738873849811,-500.0,0.0001712,2]
[352000927,1738873849820,-552.3,0.0001712,2]
[352000928,1738873849830,-511.61,0.0001712,2]
[352000929,1738873849840,-558.39,0.0001712,2]
[352000930,1738873849850,-601.22,0.0001712,2]
[352000931,1738873849860,-500.0,0.0001712,2]
[352000932,1738873849870,-620.43,0.0001712,2]
[352000933,1738873849879,-500.0,0.0001712,2]
[352000934,1738873849890,-629.83,0.0001712,2]
[352000935,1738873849899,-500.0,0.0001712,2]
[352000936,1738873849909,-500.0,0.0001712,2]
[352000937,1738873849920,-500.0,0.0001712,2]
[352000938,1738873849929,-603.83,0.0001712,2]
[352000939,1738873849942,-611.27,0.0001712,2]
[352000940,1738873849953,-500.0,0.0001712,2]
[352000941,1738873849963,-500.0,0.0001712,2]
[352000942,1738873849973,-500.0,0.0001712,2]
[352000943,1738873849986,-507.13,0.0001712,2]
[352000944,1738873849995,-956.84,0.0001712,2]
[352000945,1738873850006,-500.0,0.0001712,2]
[352000946,1738873850018,-549.23,0.0001712,2]
[352000947,1738873850028,-598.63,0.0001712,2]
[352000948,1738873850039,-607.46,0.0001712,2]
[352000949,1738873850049,-500.0,0.0001712,2]
[352000950,1738873850060,-500.0,0.0001712,2]
[352000951,1738873850070,-623.42,0.0001712,2]
[352000952,1738873850080,-500.0,0.0001712,2]
[352000953,1738873850091,-961.37,0.0001712,2]
[352000954,1738873850102,-524.89,0.0001712,2]
[352000955,1738873850113,-744.68,0.0001712,2]
[352000956,1738873850124,-914.92,0.0001712,2]
[352000957,1738873850134,-604.26,0.0001712,2]
[352000958,1738873850144,-505.6,0.0001712,2]
[352000959,1738873850154,-648.0,0.0001712,2]
[352000960,1738873850164,-1255.7,0.0001712,2]
[352000961,1738873850174,-198.97,0.0001712,2]
[352000962,1738873850184,-500.0,0.0001712,2]
[352000963,1738873850195,-763.29,0.0001712,2]
[352000964,1738873850209,-500.0,0.0001712,2]
[352000965,1738873850219,-500.0,0.0001712,2]
[352000966,1738873850229,-500.0,0.0001712,2]
[352000967,1738873850238,-500.0,0.0001712,2]
[352000968,1738873850248,-1683.0,0.0001712,2]
[352000969,1738873850258,-500.0,0.00017121,2]
[352000970,1738873850268,-500.0,0.00017121,2]
[352000971,1738873850278,-500.0,0.00017121,2]
[352000972,1738873850289,-500.0,0.00017121,2]
[352000973,1738873850299,-588.9665311,0.00017121,2]
[352000974,1738873850309,-500.0,0.00017121,2]
[352000975,1738873850319,-500.0,0.00017121,2]
[352000976,1738873850329,-500.0,0.00017121,2]
[352000977,1738873850338,-500.0,0.00017121,2]
[352000978,1738873850348,-500.0,0.00017121,2]
[352000979,1738873850358,-500.0,0.00017121,2]
[352000980,1738873850367,-500.0,0.00017121,2]
[352000981,1738873850377,-500.0,0.00017121,2]
[352000982,1738873850387,-500.0,0.00017121,2]
[352000983,1738873850397,-500.0,0.00017121,2]
[352000984,1738873850406,-500.0,0.00017121,2]
[352000985,1738873850415,-500.0,0.00017121,2]
[352000986,1738873850425,-500.0,0.00017121,2]
[352000987,1738873850435,-500.0,0.00017121,2]
[352000988,1738873850448,-500.0,0.00017121,2]
[352000989,1738873850458,-381.42629318,0.00017121,2]
[352000990,1738873850467,-500.0,0.00017121,2]
[352000991,1738873850477,-396.68,0.00017123,2]
[352000992,1738873850487,-250.0,0.00017123,2]
[352000993,1738873850496,-150.0,0.00017124,2]
[352000994,1738873850507,-150.0,0.00017125,2]
[352000995,1738873850517,-150.0,0.00017126,2]
[352000996,1738873850527,-150.0,0.00017127,2]
[352000997,1738873850537,-150.0,0.00017128,2]
[352000998,1738873850546,-150.0,0.00017129,2]
[352000999,1738873850555,-150.0,0.00017131,2]
[352001000,1738873850564,-150.0,0.00017132,2]
[352001001,1738873850574,-150.0,0.00017134,2]
[352001002,1738873850583,-500.0,0.00017138,2]
[352001003,1738873850593,-150.0,0.00017141,2]
[352001004,1738873850602,-150.0,0.00017144,2]
[352001005,1738873850612,-150.0,0.00017151,2]
[352001006,1738873850622,-150.0,0.00017151,2]
[352001007,1738873850631,-150.0,0.00017159,2]
[352001008,1738873850640,-150.0,0.00017159,2]
[352001009,1738873850650,-150.0,0.00017164,2]
[352001010,1738873850660,-150.0,0.00017166,2]
[352001011,1738873850670,-200.0,0.0001717,2]
[352001012,1738873850679,-150.0,0.00017172,2]
[352001013,1738873850689,-150.0,0.00017177,2]
[352001014,1738873850702,-150.0,0.00017178,2]
[352001015,1738873850712,-150.0,0.00017178,2]
[352001016,1738873850722,-4372.32541053,0.00017183,2]
[352001017,1738873850731,-150.0,0.00017192,2]
[352001018,1738873850741,-150.0,0.00017195,2]
[352001019,1738873850750,-156.39864357,0.00017195,2]
[352001020,1738873850760,-150.0,0.00017202,2]
[352001021,1738873850770,-500.0,0.00017206,2]
[352001022,1738873850780,-150.0,0.00017211,2]
[352001023,1738873850789,-150.0,0.00017211,2]
[352001024,1738873850798,-150.0,0.00017212,2]
[352001025,1738873850808,-150.82206092,0.00017214,2]
[352001026,1738873850818,-150.0,0.00017216,2]
[352001027,1738873850828,-150.0,0.00017218,2]
[352001028,1738873850838,-150.0,0.00017218,2]
[352001029,1738873850848,-150.0,0.00017219,2]
[352001030,1738873850858,-2565.76382998,0.00017221,2]
[352001031,1738873850868,-150.0,0.00017222,2]
[352001032,1738873850878,-150.0,0.00017227,2]
[352001033,1738873850888,-150.0,0.00017229,2]
[352001034,1738873850898,-150.0,0.0001723,2]
[352001035,1738873850908,-150.0,0.00017231,2]
[352001036,1738873850918,-150.0,0.00017232,2]
[352001037,1738873850933,-2926.0,0.00017233,2]
[352001038,1738873850943,-838.0855,0.00017233,2]
[352001039,1738873850957,-150.0,0.00017237,2]
[352001040,1738873850968,-150.0,0.0001724,2]
[352001041,1738873850978,-150.0,0.0001724,2]
[352001042,1738873850987,-150.0,0.00017243,2]
[352001043,1738873850997,-150.0,0.00017244,2]
[352001044,1738873851007,-150.0,0.00017244,2]
[352001045,1738873851017,-1000.0,0.00017246,2]
[352001046,1738873851026,-150.0,0.00017247,2]
[352001047,1738873851036,-150.0,0.00017249,2]
[352001048,1738873851045,-150.0,0.00017249,2]
[352001049,1738873851055,-150.0,0.0001725,2]
[352001050,1738873851063,-150.0,0.00017252,2]
[352001051,1738873851073,-150.0,0.00017254,2]
[352001052,1738873851082,-150.0,0.00017255,2]
[352001053,1738873851093,-500.0,0.00017256,2]
[352001054,1738873851103,-500.0,0.00017256,2]
[352001055,1738873851113,-500.0,0.00017256,2]
[352001056,1738873851123,-500.0,0.00017256,2]
[352001057,1738873851132,-500.0,0.00017256,2]
[352001058,1738873851142,-500.0,0.00017256,2]
[352001059,1738873851151,-500.0,0.00017256,2]
[352001060,1738873851160,-500.0,0.00017256,2]
[352001061,1738873851171,-500.0,0.00017256,2]
[352001062,1738873851182,-500.0,0.00017256,2]
[352001063,1738873851191,-500.0,0.00017256,2]
[352001064,1738873851202,-500.0,0.00017256,2]
[352001065,1738873851211,-482.89707508,0.00017256,2]
[352001066,1738873851220,-500.0,0.00017256,2]
[352001067,1738873851230,-500.0,0.00017256,2]
[352001068,1738873851240,-500.0,0.00017256,2]
[352001069,1738873851249,-500.0,0.00017256,2]
[352001070,1738873851259,-500.0,0.00017256,2]
[352001071,1738873851269,-500.0,0.00017256,2]
[352001072,1738873851280,-500.0,0.00017256,2]
[352001073,1738873851290,-500.0,0.00017256,2]
[352001074,1738873851299,-500.0,0.00017256,2]
[352001075,1738873851308,-500.0,0.00017256,2]
[352001076,1738873851318,-500.0,0.00017256,2]
[352001077,1738873851327,-500.0,0.00017256,2]
[352001078,1738873851336,-500.0,0.00017256,2]
[352001079,1738873851346,-500.0,0.00017256,2]
[352001080,1738873851355,-500.0,0.00017256,2]
[352001081,1738873851365,-500.0,0.00017256,2]
[352001082,1738873851374,-500.0,0.00017256,2]
[352001083,1738873851384,-150.0,0.00017256,2]
[352001084,1738873851393,-500.0,0.00017256,2]
[352001085,1738873851403,-500.0,0.00017256,2]
[352001086,1738873851413,-500.0,0.00017256,2]
[352001087,1738873851422,-500.0,0.00017256,2]
[352001088,1738873851432,-1295.22,0.00017256,2]
[352001089,1738873851441,-115.82344269,0.00017256,2]
[352001090,1738873851457,-577.29655731,0.00017256,2]
[352001091,1738873851466,-500.0,0.00017256,2]
[352001092,1738873851476,-598.1,0.00017256,2]
[352001093,1738873851486,-500.0,0.00017256,2]
[352001094,1738873851496,-500.0,0.00017256,2]
[352001095,1738873851506,-500.0,0.00017256,2]
[352001096,1738873851515,-500.0,0.00017256,2]
[352001097,1738873851525,-500.0,0.00017256,2]
[352001098,1738873851535,-500.0,0.00017256,2]
[352001099,1738873851545,-500.0,0.00017256,2]
[352001100,1738873851555,-150.0,0.00017256,2]
[352001101,1738873851565,-500.0,0.00017256,2]
[352001102,1738873851575,-500.0,0.00017256,2]
[352001103,1738873851585,-500.0,0.00017256,2]
[352001104,1738873851595,-500.0,0.00017256,2]
[352001105,1738873851604,-819.14,0.00017256,2]
[352001106,1738873851614,-575.08,0.00017256,2]
[352001107,1738873851624,-636.43,0.00017256,2]
[352001108,1738873851634,-593.37,0.00017256,2]
[352001109,1738873851644,-548.9976074,0.00017256,2]
[352001110,1738873851654,-500.0,0.00017256,2]
[352001111,1738873851663,-228.80203584,0.00017256,2]